[Event "Late-Titled-Tuesday-Blitz-April-02-2024"]
[Site "Chess.com"]
[Date "2024.04.02"]
[Round "7"]
[White "steepedgames"]
[Black "jinxy2009"]
[Result "0-1"]
[WhiteElo "2512"]
[BlackElo "2307"]
[TimeControl "180+1"]
[EndTime "15:14:53 PDT"]
[Termination "jinxy2009 won by checkmate"]

1. d4 {[%clk 0:03:00.9]} 1... Nf6 {[%clk 0:02:59]} 2. Bg5 {[%clk 0:03:01.4]}
2... d5 {[%clk 0:02:56.9]} 3. Bxf6 {[%clk 0:03:01.5]} 3... exf6 {[%clk
0:02:57.3]} 4. c4 {[%clk 0:03:02.4]} 4... dxc4 {[%clk 0:02:57]} 5. Nc3 {[%clk
0:03:03]} 5... Bd6 {[%clk 0:02:56.4]} 6. e3 {[%clk 0:03:02.6]} 6... O-O {[%clk
0:02:56.5]} 7. Bxc4 {[%clk 0:03:02.7]} 7... f5 {[%clk 0:02:56.7]} 8. Nge2 {[%clk
0:03:01.8]} 8... c6 {[%clk 0:02:56.7]} 9. g3 {[%clk 0:02:58.7]} 9... Nd7 {[%clk
0:02:57.2]} 10. Nf4 {[%clk 0:02:57.2]} 10... Nf6 {[%clk 0:02:57.7]} 11. h4
{[%clk 0:02:51.5]} 11... Re8 {[%clk 0:02:48.5]} 12. Qf3 {[%clk 0:02:44.2]} 12...
a5 {[%clk 0:02:35.2]} 13. h5 {[%clk 0:02:38.3]} 13... a4 {[%clk 0:02:29.5]} 14.
a3 {[%clk 0:02:19.8]} 14... Bd7 {[%clk 0:02:16.2]} 15. h6 {[%clk 0:02:05.8]}
15... g6 {[%clk 0:02:15]} 16. O-O-O {[%clk 0:01:48.6]} 16... b5 {[%clk 0:02:14]}
17. Ba2 {[%clk 0:01:43.8]} 17... b4 {[%clk 0:02:14.2]} 18. axb4 {[%clk
0:01:38.9]} 18... a3 {[%clk 0:02:14.7]} 19. b3 {[%clk 0:01:33.1]} 19... Bxb4
{[%clk 0:02:14.2]} 20. Na4 {[%clk 0:01:31.6]} 20... Ne4 {[%clk 0:01:59.2]} 21.
Ne2 {[%clk 0:01:18.5]} 21... Qc7 {[%clk 0:01:48]} 22. Kb1 {[%clk 0:01:12.3]}
22... c5 {[%clk 0:01:42.3]} 23. Nxc5 {[%clk 0:01:03.6]} 23... Nxc5 {[%clk
0:01:36.5]} 24. dxc5 {[%clk 0:01:02.5]} 24... Bc6 {[%clk 0:01:36.6]} 25. Qf4
{[%clk 0:00:59.7]} 25... Be4+ {[%clk 0:01:36]} 26. Ka1 {[%clk 0:00:53.6]} 26...
Qxc5 {[%clk 0:01:32]} 27. Rc1 {[%clk 0:00:50]} 27... Bc2 {[%clk 0:01:15.8]} 28.
Bb1 {[%clk 0:00:23.3]} 28... Bc3+ {[%clk 0:01:03.4]} 29. Ka2 {[%clk 0:00:23.6]}
29... Bxb3+ {[%clk 0:00:58.3]} 30. Kxb3 {[%clk 0:00:21.1]} 30... Rab8+ {[%clk
0:00:48.1]} 31. Kc2 {[%clk 0:00:21.3]} 31... Rb2+ {[%clk 0:00:48]} 32. Kd3
{[%clk 0:00:18.2]} 32... Rd2# {[%clk 0:00:46.6]} 0-1

[Event "Late-Titled-Tuesday-Blitz-April-02-2024"]
[Site "Chess.com"]
[Date "2024.04.02"]
[Round "7"]
[White "GMAkobianSTL"]
[Black "Hrant_ChessMood"]
[Result "1-0"]
[WhiteElo "2794"]
[BlackElo "2927"]
[TimeControl "180+1"]
[EndTime "15:14:58 PDT"]
[Termination "GMAkobianSTL won by resignation"]

1. d4 {[%clk 0:03:00.9]} 1... Nf6 {[%clk 0:02:58.6]} 2. c4 {[%clk 0:03:01]} 2...
g6 {[%clk 0:02:57.1]} 3. Nc3 {[%clk 0:02:59.3]} 3... Bg7 {[%clk 0:02:57.7]} 4.
e4 {[%clk 0:02:58.9]} 4... d6 {[%clk 0:02:58.3]} 5. h3 {[%clk 0:02:59]} 5... e5
{[%clk 0:02:56.2]} 6. d5 {[%clk 0:02:58.1]} 6... Na6 {[%clk 0:02:55.1]} 7. Bd3
{[%clk 0:02:53.1]} 7... Nc5 {[%clk 0:02:49.5]} 8. Bc2 {[%clk 0:02:52.5]} 8... a5
{[%clk 0:02:49.8]} 9. Bg5 {[%clk 0:02:51.6]} 9... h5 {[%clk 0:02:32.6]} 10. Qd2
{[%clk 0:02:45.7]} 10... Bd7 {[%clk 0:02:30.3]} 11. O-O-O {[%clk 0:02:44.3]}
11... Qe7 {[%clk 0:02:28.5]} 12. f4 {[%clk 0:02:35.3]} 12... exf4 {[%clk
0:02:14.5]} 13. Nf3 {[%clk 0:02:22.3]} 13... Qf8 {[%clk 0:01:43.1]} 14. e5
{[%clk 0:02:13.3]} 14... dxe5 {[%clk 0:01:29.2]} 15. Nxe5 {[%clk 0:02:00.9]}
15... O-O-O {[%clk 0:01:14.1]} 16. Bxf4 {[%clk 0:01:56.4]} 16... Re8 {[%clk
0:00:56.2]} 17. Rhe1 {[%clk 0:01:51.4]} 17... h4 {[%clk 0:00:51.8]} 18. Nxd7
{[%clk 0:01:19.1]} 18... Nfxd7 {[%clk 0:00:48]} 19. Nb5 {[%clk 0:01:18.2]} 19...
Rxe1 {[%clk 0:00:35.7]} 20. Rxe1 {[%clk 0:01:15.8]} 20... Na6 {[%clk 0:00:32.1]}
21. Qxa5 {[%clk 0:01:01.5]} 21... Bh6 {[%clk 0:00:32.4]} 22. Qd2 {[%clk
0:00:57.3]} 22... Bxf4 {[%clk 0:00:25.6]} 23. Qxf4 {[%clk 0:00:57.1]} 23... Qc5
{[%clk 0:00:16.8]} 24. a3 {[%clk 0:00:53.7]} 24... f5 {[%clk 0:00:16]} 25. b4
{[%clk 0:00:48.1]} 25... Qf8 {[%clk 0:00:16.1]} 26. Re6 {[%clk 0:00:41.3]} 26...
Rg8 {[%clk 0:00:12.4]} 27. Rxa6 {[%clk 0:00:40.6]} 1-0

[Event "Late-Titled-Tuesday-Blitz-April-02-2024"]
[Site "Chess.com"]
[Date "2024.04.02"]
[Round "7"]
[White "vladgoncharov"]
[Black "AsaHoffmann"]
[Result "1-0"]
[WhiteElo "2568"]
[BlackElo "2414"]
[TimeControl "180+1"]
[EndTime "15:15:01 PDT"]
[Termination "vladgoncharov won by resignation"]

1. d4 {[%clk 0:02:37]} 1... Nf6 {[%clk 0:02:59.1]} 2. c4 {[%clk 0:02:36.1]} 2...
c5 {[%clk 0:02:59.2]} 3. d5 {[%clk 0:02:36.1]} 3... e5 {[%clk 0:02:59.1]} 4. Nc3
{[%clk 0:02:36.1]} 4... d6 {[%clk 0:02:59.2]} 5. h3 {[%clk 0:02:34.5]} 5... Be7
{[%clk 0:02:58.9]} 6. Nf3 {[%clk 0:02:33.7]} 6... O-O {[%clk 0:02:58.2]} 7. g4
{[%clk 0:02:32.3]} 7... Ne8 {[%clk 0:02:57.9]} 8. e4 {[%clk 0:02:31.2]} 8... Na6
{[%clk 0:02:56.1]} 9. Bd3 {[%clk 0:02:30.3]} 9... Nac7 {[%clk 0:02:55.8]} 10.
Be3 {[%clk 0:02:25.6]} 10... a6 {[%clk 0:02:54.8]} 11. a3 {[%clk 0:02:24]} 11...
Rb8 {[%clk 0:02:54.5]} 12. b4 {[%clk 0:02:23]} 12... b6 {[%clk 0:02:53.6]} 13.
Rb1 {[%clk 0:02:21.5]} 13... Bd7 {[%clk 0:02:53.6]} 14. Bc2 {[%clk 0:02:08.4]}
14... h6 {[%clk 0:02:40.9]} 15. bxc5 {[%clk 0:01:53.3]} 15... bxc5 {[%clk
0:02:40]} 16. Rxb8 {[%clk 0:01:43.7]} 16... Qxb8 {[%clk 0:02:39.3]} 17. Ba4
{[%clk 0:01:43.7]} 17... Bxa4 {[%clk 0:02:29.6]} 18. Nxa4 {[%clk 0:01:37.9]}
18... Bd8 {[%clk 0:02:26.5]} 19. O-O {[%clk 0:01:36.4]} 19... Nf6 {[%clk
0:02:21.7]} 20. Qc2 {[%clk 0:01:35.8]} 20... Nce8 {[%clk 0:02:15.3]} 21. Rb1
{[%clk 0:01:31.4]} 21... Qc8 {[%clk 0:02:15]} 22. Nh2 {[%clk 0:01:31.5]} 22...
Qd7 {[%clk 0:02:13]} 23. f3 {[%clk 0:01:20.8]} 23... Nh7 {[%clk 0:02:09]} 24.
Kg2 {[%clk 0:01:17.8]} 24... Bg5 {[%clk 0:02:08.3]} 25. Bf2 {[%clk 0:01:17.8]}
25... Bf4 {[%clk 0:02:07.8]} 26. Nf1 {[%clk 0:01:17.1]} 26... Qe7 {[%clk
0:02:06.5]} 27. Rb6 {[%clk 0:01:11.7]} 27... g6 {[%clk 0:02:00.3]} 28. Rxa6
{[%clk 0:01:06.9]} 28... f5 {[%clk 0:01:59.7]} 29. Nc3 {[%clk 0:00:53.9]} 29...
fxg4 {[%clk 0:01:58.2]} 30. fxg4 {[%clk 0:00:38.7]} 30... Qf7 {[%clk 0:01:57.4]}
31. Nb5 {[%clk 0:00:34.2]} 31... Qf6 {[%clk 0:01:52.1]} 32. Qe2 {[%clk
0:00:28.8]} 32... Ng5 {[%clk 0:01:51.5]} 33. Bxc5 {[%clk 0:00:24.9]} 33... dxc5
{[%clk 0:01:47.2]} 34. Rxf6 {[%clk 0:00:23.9]} 34... Nxf6 {[%clk 0:01:46.8]} 35.
Nc3 {[%clk 0:00:15.7]} 35... Rb8 {[%clk 0:01:44.6]} 36. Qc2 {[%clk 0:00:15.5]}
36... h5 {[%clk 0:01:40.2]} 37. gxh5 {[%clk 0:00:14.7]} 37... Nxh5 {[%clk
0:01:39]} 38. Nd2 {[%clk 0:00:14.2]} 38... Bxd2 {[%clk 0:01:37.6]} 39. Qxd2
{[%clk 0:00:13.9]} 39... Nf4+ {[%clk 0:01:37.6]} 40. Kg3 {[%clk 0:00:12.5]}
40... Ngxh3 {[%clk 0:01:36.6]} 41. d6 {[%clk 0:00:10.8]} 41... Rb3 {[%clk
0:01:33.4]} 42. d7 {[%clk 0:00:10.9]} 42... Rxc3+ {[%clk 0:01:32]} 43. Qxc3
{[%clk 0:00:09.6]} 43... Ne2+ {[%clk 0:01:30.8]} 44. Kxh3 {[%clk 0:00:09.9]}
44... Nxc3 {[%clk 0:01:30.8]} 45. d8=Q+ {[%clk 0:00:10.6]} 45... Kf7 {[%clk
0:01:30.9]} 46. Qc7+ {[%clk 0:00:10.7]} 46... Kf6 {[%clk 0:01:30.2]} 47. Qd6+
{[%clk 0:00:10.9]} 47... Kg5 {[%clk 0:01:29.4]} 48. Qxe5+ {[%clk 0:00:11.1]}
48... Kh6 {[%clk 0:01:29.2]} 49. Qxc3 {[%clk 0:00:12]} 1-0

[Event "Late-Titled-Tuesday-Blitz-April-02-2024"]
[Site "Chess.com"]
[Date "2024.04.02"]
[Round "7"]
[White "APOKALIPSA13"]
[Black "DinaBelenkaya"]
[Result "0-1"]
[WhiteElo "2291"]
[BlackElo "2460"]
[TimeControl "180+1"]
[EndTime "15:15:02 PDT"]
[Termination "DinaBelenkaya won on time"]

1. e4 {[%clk 0:03:00.2]} 1... c6 {[%clk 0:02:57.5]} 2. d4 {[%clk 0:02:59.6]}
2... d5 {[%clk 0:02:57.8]} 3. e5 {[%clk 0:02:59.8]} 3... Bf5 {[%clk 0:02:56.5]}
4. Be3 {[%clk 0:02:59.3]} 4... e6 {[%clk 0:02:56.4]} 5. Nd2 {[%clk 0:02:56.8]}
5... Qb6 {[%clk 0:02:54.9]} 6. Bd3 {[%clk 0:02:52.8]} 6... Bxd3 {[%clk
0:02:53.5]} 7. cxd3 {[%clk 0:02:53.7]} 7... Ne7 {[%clk 0:02:48.6]} 8. g4 {[%clk
0:02:46.4]} 8... h5 {[%clk 0:02:47.5]} 9. f3 {[%clk 0:02:42.5]} 9... hxg4 {[%clk
0:02:43.9]} 10. fxg4 {[%clk 0:02:42.1]} 10... Ng6 {[%clk 0:02:43.2]} 11. Ngf3
{[%clk 0:02:35]} 11... Be7 {[%clk 0:02:42.9]} 12. O-O {[%clk 0:02:28]} 12... Nd7
{[%clk 0:02:41.7]} 13. Qe1 {[%clk 0:02:10.7]} 13... O-O-O {[%clk 0:02:38.8]} 14.
a3 {[%clk 0:02:07.6]} 14... Rh3 {[%clk 0:02:27.7]} 15. b4 {[%clk 0:02:06]} 15...
Rdh8 {[%clk 0:02:26.2]} 16. Rf2 {[%clk 0:02:03.3]} 16... Nh4 {[%clk 0:02:24]}
17. Ng5 {[%clk 0:01:52.7]} 17... Bxg5 {[%clk 0:02:21.5]} 18. Bxg5 {[%clk
0:01:49.6]} 18... Qxd4 {[%clk 0:02:21.1]} 19. b5 {[%clk 0:00:44.1]} 19... Qxg4+
{[%clk 0:02:12.7]} 20. Kf1 {[%clk 0:00:41]} 20... Qxg5 {[%clk 0:02:08.5]} 21.
bxc6 {[%clk 0:00:40]} 21... bxc6 {[%clk 0:02:08.1]} 22. Rc1 {[%clk 0:00:31.6]}
22... Nxe5 {[%clk 0:01:59.3]} 23. Qd1 {[%clk 0:00:24.9]} 23... Nhf3 {[%clk
0:01:47.2]} 24. Nxf3 {[%clk 0:00:13]} 24... Rxf3 {[%clk 0:01:37.7]} 25. Rxc6+
{[%clk 0:00:11.3]} 25... Nxc6 {[%clk 0:01:24.6]} 26. Qxf3 {[%clk 0:00:08.9]}
26... Qc1+ {[%clk 0:01:24]} 27. Kg2 {[%clk 0:00:08.8]} 27... Qg5+ {[%clk
0:01:24.7]} 28. Kh1 {[%clk 0:00:07.8]} 28... Ne5 {[%clk 0:01:24.8]} 29. Qd1
{[%clk 0:00:06.7]} 29... Qe3 {[%clk 0:01:05.7]} 30. Qc2+ {[%clk 0:00:05.2]}
30... Kd8 {[%clk 0:01:03.9]} 31. Rg2 {[%clk 0:00:02.7]} 31... Nf3 {[%clk
0:00:56.1]} 0-1

[Event "Late-Titled-Tuesday-Blitz-April-02-2024"]
[Site "Chess.com"]
[Date "2024.04.02"]
[Round "7"]
[White "Savagelittlemole"]
[Black "Duhless"]
[Result "0-1"]
[WhiteElo "2498"]
[BlackElo "3092"]
[TimeControl "180+1"]
[EndTime "15:15:03 PDT"]
[Termination "Duhless won on time"]

1. e4 {[%clk 0:03:00.9]} 1... Nf6 {[%clk 0:03:00.9]} 2. Nc3 {[%clk 0:02:58.1]}
2... e5 {[%clk 0:03:00.9]} 3. Nf3 {[%clk 0:02:57.6]} 3... Nc6 {[%clk 0:03:01.8]}
4. Bb5 {[%clk 0:02:56.1]} 4... Bc5 {[%clk 0:03:01.1]} 5. O-O {[%clk 0:02:53.8]}
5... O-O {[%clk 0:03:00.2]} 6. h3 {[%clk 0:02:47.9]} 6... Nd4 {[%clk 0:02:58.7]}
7. Bc4 {[%clk 0:02:37.4]} 7... c6 {[%clk 0:02:57.5]} 8. a4 {[%clk 0:02:34.3]}
8... d5 {[%clk 0:02:56.5]} 9. exd5 {[%clk 0:02:27.1]} 9... cxd5 {[%clk
0:02:56.4]} 10. Ba2 {[%clk 0:02:23.5]} 10... Nxf3+ {[%clk 0:02:46.5]} 11. Qxf3
{[%clk 0:02:23.5]} 11... e4 {[%clk 0:02:47.4]} 12. Qg3 {[%clk 0:02:00]} 12... d4
{[%clk 0:02:42.9]} 13. Ne2 {[%clk 0:01:48.2]} 13... d3 {[%clk 0:02:39.4]} 14.
cxd3 {[%clk 0:01:37.9]} 14... exd3 {[%clk 0:02:40.3]} 15. Nf4 {[%clk 0:01:33.2]}
15... Bf5 {[%clk 0:02:36.3]} 16. Bc4 {[%clk 0:01:27.7]} 16... Bd6 {[%clk
0:02:33.5]} 17. Qh4 {[%clk 0:01:09.6]} 17... Be5 {[%clk 0:01:53.6]} 18. Qg5
{[%clk 0:00:50.7]} 18... g6 {[%clk 0:01:51.2]} 19. Nxd3 {[%clk 0:00:29]} 19...
Bh2+ {[%clk 0:01:26.6]} 20. Kxh2 {[%clk 0:00:15.4]} 20... Ng4+ {[%clk
0:01:25.9]} 21. hxg4 {[%clk 0:00:15.5]} 21... Qxg5 {[%clk 0:01:25.9]} 22. gxf5
{[%clk 0:00:15.2]} 22... Qh4+ {[%clk 0:01:26.4]} 23. Kg1 {[%clk 0:00:14.5]}
23... Qxc4 {[%clk 0:01:27.3]} 24. Ra3 {[%clk 0:00:13.4]} 24... Rfe8 {[%clk
0:01:26.6]} 25. f6 {[%clk 0:00:12.3]} 25... Rad8 {[%clk 0:01:26.1]} 26. Rc3
{[%clk 0:00:11.4]} 26... Qxa4 {[%clk 0:01:20.6]} 27. Nc5 {[%clk 0:00:10.6]}
27... Qc6 {[%clk 0:01:21.3]} 28. d3 {[%clk 0:00:08.5]} 28... Qxf6 {[%clk
0:01:21.6]} 29. Ne4 {[%clk 0:00:07.6]} 29... Qf5 {[%clk 0:00:56.9]} 30. Be3
{[%clk 0:00:07.6]} 30... Rxe4 {[%clk 0:00:57.6]} 31. dxe4 {[%clk 0:00:06.1]}
31... Qxe4 {[%clk 0:00:58.5]} 32. Bxa7 {[%clk 0:00:05.3]} 32... Qb4 {[%clk
0:00:58.8]} 33. Be3 {[%clk 0:00:01.3]} 33... Qxb2 {[%clk 0:00:58.4]} 0-1

[Event "Late-Titled-Tuesday-Blitz-April-02-2024"]
[Site "Chess.com"]
[Date "2024.04.02"]
[Round "7"]
[White "azikom"]
[Black "The_Straightforward_Rook"]
[Result "1-0"]
[WhiteElo "2654"]
[BlackElo "2362"]
[TimeControl "180+1"]
[EndTime "15:15:03 PDT"]
[Termination "azikom won by resignation"]

1. e4 {[%clk 0:02:59.3]} 1... c6 {[%clk 0:02:54.7]} 2. Nc3 {[%clk 0:03:00.2]}
2... d5 {[%clk 0:02:55.2]} 3. Nf3 {[%clk 0:02:58.7]} 3... dxe4 {[%clk
0:02:55.5]} 4. Nxe4 {[%clk 0:02:58.5]} 4... Nf6 {[%clk 0:02:56.4]} 5. Ng3 {[%clk
0:02:58.3]} 5... h5 {[%clk 0:02:55.3]} 6. h3 {[%clk 0:02:56.4]} 6... h4 {[%clk
0:02:54.4]} 7. Ne2 {[%clk 0:02:56.9]} 7... Bf5 {[%clk 0:02:45.3]} 8. Ned4 {[%clk
0:02:54.6]} 8... e6 {[%clk 0:02:44.3]} 9. Nxf5 {[%clk 0:02:53.5]} 9... exf5
{[%clk 0:02:45.2]} 10. Bc4 {[%clk 0:02:53.8]} 10... Bd6 {[%clk 0:02:39.1]} 11.
O-O {[%clk 0:02:52.4]} 11... Kf8 {[%clk 0:02:36.6]} 12. Re1 {[%clk 0:02:49.8]}
12... Nbd7 {[%clk 0:02:35.7]} 13. d3 {[%clk 0:02:49.2]} 13... Qc7 {[%clk
0:02:30.8]} 14. a4 {[%clk 0:02:46]} 14... g6 {[%clk 0:02:18.6]} 15. Bg5 {[%clk
0:02:41.1]} 15... Kg7 {[%clk 0:02:10.5]} 16. Bxh4 {[%clk 0:02:39.8]} 16... Ne5
{[%clk 0:02:01.8]} 17. Bg5 {[%clk 0:02:25.8]} 17... Rh5 {[%clk 0:01:53.7]} 18.
Bd2 {[%clk 0:02:20.4]} 18... Rah8 {[%clk 0:01:44.9]} 19. Bc3 {[%clk 0:02:19.4]}
19... Neg4 {[%clk 0:01:24.7]} 20. Qe2 {[%clk 0:02:01.2]} 20... Rxh3 {[%clk
0:01:23]} 21. gxh3 {[%clk 0:02:00.5]} 21... Rxh3 {[%clk 0:01:23.9]} 22. Kg2
{[%clk 0:01:58.5]} 22... Rh5 {[%clk 0:00:55.6]} 23. Rh1 {[%clk 0:01:56.6]} 23...
Kh7 {[%clk 0:00:55.7]} 24. Ng5+ {[%clk 0:01:48.8]} 24... Kg8 {[%clk 0:00:54.6]}
25. Nxf7 {[%clk 0:01:45.6]} 25... Kf8 {[%clk 0:00:50.7]} 26. Rae1 {[%clk
0:01:27.4]} 26... Rxh1 {[%clk 0:00:27]} 27. Rxh1 {[%clk 0:01:26.5]} 27... Nh5
{[%clk 0:00:21.8]} 28. Rxh5 {[%clk 0:01:02.1]} 28... gxh5 {[%clk 0:00:20.8]} 29.
Qe6 {[%clk 0:00:52.5]} 29... Be7 {[%clk 0:00:18.2]} 30. Ne5 {[%clk 0:00:44.2]}
1-0

[Event "Late-Titled-Tuesday-Blitz-April-02-2024"]
[Site "Chess.com"]
[Date "2024.04.02"]
[Round "7"]
[White "sergiochess83"]
[Black "temus_galaktionov"]
[Result "1/2-1/2"]
[WhiteElo "2967"]
[BlackElo "2863"]
[TimeControl "180+1"]
[EndTime "15:15:05 PDT"]
[Termination "Game drawn by repetition"]

1. d4 {[%clk 0:02:55.1]} 1... c6 {[%clk 0:03:00.9]} 2. Nf3 {[%clk 0:02:49.4]}
2... g6 {[%clk 0:03:01.8]} 3. e4 {[%clk 0:02:48.1]} 3... d6 {[%clk 0:03:02.3]}
4. h3 {[%clk 0:02:45.7]} 4... Bg7 {[%clk 0:03:02.7]} 5. Bd3 {[%clk 0:02:44]}
5... Nd7 {[%clk 0:03:02.8]} 6. O-O {[%clk 0:02:43.4]} 6... e5 {[%clk 0:03:03]}
7. c3 {[%clk 0:02:43.9]} 7... Ngf6 {[%clk 0:03:02.9]} 8. Re1 {[%clk 0:02:44.4]}
8... O-O {[%clk 0:03:02.8]} 9. Nbd2 {[%clk 0:02:45.1]} 9... Qc7 {[%clk
0:03:03.1]} 10. Nf1 {[%clk 0:02:45]} 10... b6 {[%clk 0:03:03.4]} 11. Ng3 {[%clk
0:02:45.1]} 11... Bb7 {[%clk 0:03:03.7]} 12. Bg5 {[%clk 0:02:41.5]} 12... h6
{[%clk 0:03:04]} 13. Be3 {[%clk 0:02:41.6]} 13... Rfe8 {[%clk 0:03:04.2]} 14.
Qd2 {[%clk 0:02:41.8]} 14... Kh7 {[%clk 0:03:04.9]} 15. Rad1 {[%clk 0:02:41.9]}
15... Rad8 {[%clk 0:03:04.4]} 16. Qc1 {[%clk 0:02:35.4]} 16... d5 {[%clk
0:02:56.4]} 17. dxe5 {[%clk 0:02:22.4]} 17... Nxe4 {[%clk 0:02:53.3]} 18. Nxe4
{[%clk 0:02:07]} 18... dxe4 {[%clk 0:02:54.2]} 19. Bxe4 {[%clk 0:02:07.6]} 19...
Nxe5 {[%clk 0:02:54]} 20. Nxe5 {[%clk 0:01:46.7]} 20... Rxd1 {[%clk 0:02:37.9]}
21. Rxd1 {[%clk 0:01:34.5]} 21... Qxe5 {[%clk 0:02:36]} 22. Bf3 {[%clk
0:01:25.3]} 22... Qe7 {[%clk 0:02:35.3]} 23. Qd2 {[%clk 0:01:15.6]} 23... c5
{[%clk 0:02:29.9]} 24. Bxb7 {[%clk 0:01:08.7]} 24... Qxb7 {[%clk 0:02:30.8]} 25.
Qd5 {[%clk 0:01:08.4]} 25... Qe7 {[%clk 0:02:19.5]} 26. a4 {[%clk 0:01:03.3]}
26... Bf6 {[%clk 0:02:17.9]} 27. Qc6 {[%clk 0:01:02.1]} 27... Rd8 {[%clk
0:02:13]} 28. Rxd8 {[%clk 0:00:59]} 28... Qxd8 {[%clk 0:02:13.9]} 29. g3 {[%clk
0:00:58.5]} 29... Kg7 {[%clk 0:02:01.1]} 30. Kg2 {[%clk 0:00:53]} 30... Bg5
{[%clk 0:01:40.7]} 31. Bxg5 {[%clk 0:00:42.1]} 31... hxg5 {[%clk 0:01:41.6]} 32.
a5 {[%clk 0:00:34.7]} 32... Qf6 {[%clk 0:00:54.7]} 33. Qc7 {[%clk 0:00:30.4]}
33... Qe6 {[%clk 0:00:48.2]} 34. Qxa7 {[%clk 0:00:26.1]} 34... Qe4+ {[%clk
0:00:47.3]} 35. Kg1 {[%clk 0:00:24.5]} 35... Qe1+ {[%clk 0:00:46.4]} 36. Kg2
{[%clk 0:00:24.8]} 36... Qe4+ {[%clk 0:00:45.7]} 37. Kg1 {[%clk 0:00:22.8]}
37... Qe1+ {[%clk 0:00:44.7]} 38. Kg2 {[%clk 0:00:23.2]} 38... Qe4+ {[%clk
0:00:44]} 1/2-1/2

[Event "Late-Titled-Tuesday-Blitz-April-02-2024"]
[Site "Chess.com"]
[Date "2024.04.02"]
[Round "7"]
[White "giomar27"]
[Black "Oleg_Papayan"]
[Result "1-0"]
[WhiteElo "2505"]
[BlackElo "2689"]
[TimeControl "180+1"]
[EndTime "15:15:07 PDT"]
[Termination "giomar27 won by resignation"]

1. d4 {[%clk 0:03:00.9]} 1... d5 {[%clk 0:02:59.9]} 2. Nc3 {[%clk 0:03:00.4]}
2... Nf6 {[%clk 0:02:59.3]} 3. Bf4 {[%clk 0:03:00.5]} 3... a6 {[%clk 0:02:59.2]}
4. e3 {[%clk 0:03:00.3]} 4... e6 {[%clk 0:02:59.6]} 5. g4 {[%clk 0:02:59.6]}
5... c5 {[%clk 0:02:54.4]} 6. g5 {[%clk 0:02:59.6]} 6... Nfd7 {[%clk 0:02:52.5]}
7. Nf3 {[%clk 0:02:59.7]} 7... b5 {[%clk 0:02:50.5]} 8. h4 {[%clk 0:02:58.7]}
8... Nc6 {[%clk 0:02:38.6]} 9. h5 {[%clk 0:02:58.5]} 9... b4 {[%clk 0:02:15.7]}
10. Ne2 {[%clk 0:02:58.3]} 10... c4 {[%clk 0:02:12.4]} 11. Bh3 {[%clk 0:02:57]}
11... Nb6 {[%clk 0:02:11.4]} 12. Kf1 {[%clk 0:02:53.3]} 12... Bd6 {[%clk
0:02:10.2]} 13. c3 {[%clk 0:02:52.6]} 13... a5 {[%clk 0:02:03.3]} 14. Kg2 {[%clk
0:02:43.6]} 14... Bb7 {[%clk 0:01:46.2]} 15. g6 {[%clk 0:02:41.6]} 15... h6
{[%clk 0:01:26.4]} 16. gxf7+ {[%clk 0:02:39.4]} 16... Kxf7 {[%clk 0:01:26.5]}
17. Qb1 {[%clk 0:02:38.4]} 17... Bc8 {[%clk 0:01:10.1]} 18. Qg6+ {[%clk
0:02:37.7]} 18... Kf8 {[%clk 0:01:10.7]} 19. Bxe6 {[%clk 0:02:34.3]} 19... Ra7
{[%clk 0:00:43.1]} 20. Rh4 {[%clk 0:02:19.9]} 20... Bxe6 {[%clk 0:00:19.8]} 21.
Qxe6 {[%clk 0:02:18.9]} 21... Nc8 {[%clk 0:00:20.5]} 22. Bxd6+ {[%clk 0:02:16]}
22... Nxd6 {[%clk 0:00:20.5]} 23. Rf4+ {[%clk 0:02:16.2]} 23... Rf7 {[%clk
0:00:20.2]} 24. Nh4 {[%clk 0:02:12.5]} 24... Ne7 {[%clk 0:00:16.6]} 25. Rxf7+
{[%clk 0:02:05.9]} 25... Nxf7 {[%clk 0:00:17.5]} 26. Nf4 {[%clk 0:02:05.5]}
26... Kg8 {[%clk 0:00:06.4]} 27. Nhg6 {[%clk 0:02:04.7]} 27... Nxg6 {[%clk
0:00:06.6]} 28. hxg6 {[%clk 0:02:02.6]} 28... Qg5+ {[%clk 0:00:06.1]} 29. Kh3
{[%clk 0:01:53.9]} 29... Qf6 {[%clk 0:00:04.4]} 30. Qxf7+ {[%clk 0:01:52.9]}
30... Qxf7 {[%clk 0:00:05.3]} 31. gxf7+ {[%clk 0:01:53.8]} 31... Kxf7 {[%clk
0:00:06]} 32. Nxd5 {[%clk 0:01:53.4]} 32... Rb8 {[%clk 0:00:03.7]} 33. cxb4
{[%clk 0:01:47.1]} 33... axb4 {[%clk 0:00:04.6]} 34. Rc1 {[%clk 0:01:47.5]}
34... Rc8 {[%clk 0:00:03.5]} 35. Nxb4 {[%clk 0:01:47.1]} 35... h5 {[%clk
0:00:02.7]} 36. Nd5 {[%clk 0:01:45.5]} 36... g5 {[%clk 0:00:03.6]} 37. Kg2
{[%clk 0:01:45]} 37... Ke6 {[%clk 0:00:03.7]} 38. Nc3 {[%clk 0:01:43.8]} 38...
Kf5 {[%clk 0:00:04]} 39. Rh1 {[%clk 0:01:41.2]} 39... h4 {[%clk 0:00:04.1]} 40.
f3 {[%clk 0:01:35.8]} 40... Rb8 {[%clk 0:00:04]} 41. Rb1 {[%clk 0:01:35.6]}
41... Rb7 {[%clk 0:00:03.1]} 42. e4+ {[%clk 0:01:34.2]} 42... Kf4 {[%clk
0:00:03.2]} 43. Kf2 {[%clk 0:01:34.4]} 43... Rxb2+ {[%clk 0:00:01.2]} 44. Rxb2
{[%clk 0:01:33.8]} 44... g4 {[%clk 0:00:02.1]} 45. Ne2+ {[%clk 0:01:34.3]} 45...
Kg5 {[%clk 0:00:03]} 46. f4+ {[%clk 0:01:33.3]} 46... Kf6 {[%clk 0:00:02.9]} 47.
Rb6+ {[%clk 0:01:32.5]} 47... Ke7 {[%clk 0:00:03.8]} 48. Rh6 {[%clk 0:01:31.8]}
48... c3 {[%clk 0:00:04.7]} 49. Nxc3 {[%clk 0:01:31.1]} 49... g3+ {[%clk
0:00:05.6]} 50. Kf3 {[%clk 0:01:31.4]} 50... h3 {[%clk 0:00:06.5]} 51. Rxh3
{[%clk 0:01:30.6]} 51... Kf7 {[%clk 0:00:07.4]} 1-0